bitfinex-derivatives/quotes_SOLF0:USTF0_20250310
["timestamp","ask_amount","ask_price","bid_price","bid_amount"]
[1741631376697,91.03836908,118.32,118.22,40.91836908]
[1741631376698,8.4559,118.32,118.27,8.4586]
[1741631376905,40.91836908,118.34,118.23,8.3934]
[1741631377095,40.91836908,118.32,118.28,0.06047579]
[1741631377288,8.4578,118.29,118.28,0.06047579]
[1741631377784,58.5766,118.31,118.28,0.06047579]
[1741631378191,50.12,118.31,118.28,0.06047579]
[1741631378384,58.5766,118.31,118.28,0.06047579]
[1741631378891,50.12,118.31,118.28,0.06047579]
[1741631379398,8.4558,118.32,118.28,0.06047579]
[1741631379891,116.52602772,118.34,118.28,0.06047579]
[1741631380196,8.4564,118.32,118.28,0.06047579]
[1741631380497,116.52602772,118.34,118.28,0.06047579]
[1741631381090,8.4568,118.31,118.28,0.06047579]
[1741631381590,8.4555,118.33,118.28,0.06047579]
[1741631381791,279.28,118.35,118.28,0.06047579]
[1741631381994,66.28042772,118.34,118.28,0.06047579]
[1741631382294,50.12,118.33,118.28,0.06047579]
[1741631382488,8.4575,118.3,118.28,0.06047579]
[1741631382685,66.28042772,118.3,118.28,0.06047579]
[1741631382893,50.12,118.29,118.23,8.3934]
[1741631383590,8.4597,118.27,118.23,8.3934]
[1741631383890,8.4597,118.27,118.23,16.8555]
[1741631384075,50.12,118.29,118.23,16.8555]
[1741631384076,0.05756055,118.26,118.24,0.06370338]
[1741631384878,8.51786055,118.26,118.24,0.06370338]
[1741631385076,0.05756055,118.26,118.24,0.06370338]
[1741631385479,8.4629,118.22,118.17,66.707]
[1741631385885,116.38042772,118.25,118.17,58.241]
[1741631386071,50.1,118.25,118.17,58.241]
[1741631386275,50.1,118.25,118.17,8.141]
[1741631386669,0.05630722,118.22,118.2,0.06365406]
[1741631390374,279.14,118.27,118.21,8.4635]
[1741631390574,279.14,118.27,118.2,50.1]
[1741631391072,8.4588,118.28,118.24,8.4608]
[1741631391269,279.16,118.32,118.22,4.4112]
[1741631391463,8.4574,118.3,118.26,8.4595]
[1741631391667,0.05907124,118.28,118.26,0.05941903]
[1741631391969,0.05907124,118.28,118.26,8.51921903]
[1741631392371,0.05907124,118.28,118.26,0.05941903]
[1741631392676,279.16,118.32,118.26,0.05941903]
[1741631392975,395.56042772,118.37,118.28,8.4581]
[1741631393178,395.56042772,118.37,118.24,50.1]
[1741631393179,395.56042772,118.37,118.27,66.28042772]
[1741631393370,395.56042772,118.37,118.28,4.4112]
[1741631393566,279.18,118.37,118.28,54.5112]
[1741631393771,279.18,118.37,118.29,66.28042772]
[1741631393968,279.18,118.37,118.32,8.4554]
[1741631394174,116.38042772,118.41,118.32,50.1]
[1741631394371,345.46042772,118.42,118.32,50.1]
[1741631394575,395.56042772,118.42,118.32,50.1]
[1741631394879,66.28042772,118.44,118.36,0.06185108]
[1741631395079,8.449,118.42,118.35,8.4529]
[1741631395281,66.28042772,118.46,118.39,0.05994478]
[1741631395477,50.08,118.47,118.39,0.05994478]
[1741631395677,345.40042772,118.48,118.37,74.49852772]
[1741631395879,345.40042772,118.48,118.42,0.05664213]
[1741631396271,8.4461,118.46,118.42,0.05664213]
[1741631396671,8.4459,118.46,118.42,0.05664213]
[1741631396869,279.12,118.48,118.42,0.05664213]
[1741631397282,8.4461,118.46,118.42,0.05664213]
[1741631397483,279.12,118.48,118.42,0.05664213]
[1741631397779,8.4451,118.47,118.42,0.05664213]
[1741631398179,261.74983616,118.56,118.42,0.05664213]
[1741631398180,66.28042772,118.52,118.42,0.05664213]
[1741631398376,279.0,118.53,118.43,66.28042772]
[1741631398582,8.4432,118.5,118.46,0.06044644]
[1741631398980,279.0,118.53,118.46,0.06044644]
[1741631399280,8.4435,118.49,118.46,0.06044644]
[1741631399879,279.0,118.53,118.46,0.06044644]
[1741631399880,66.28042772,118.52,118.46,0.06044644]
[1741631400276,8.4432,118.5,118.46,0.06044644]
[1741631400474,66.28042772,118.47,118.33,424.79004703]
[1741631400775,67.48,118.49,118.33,233.79004703]
[1741631400776,66.28042772,118.37,118.33,233.79004703]
[1741631400975,66.28042772,118.37,118.27,8.5019]
[1741631400976,66.28042772,118.35,118.27,8.5019]
[1741631401181,66.28042772,118.38,118.27,8.5019]
[1741631401383,66.28042772,118.44,118.28,66.28042772]
[1741631401582,0.05815015,118.34,118.31,0.05598165]
[1741631401776,66.28042772,118.44,118.33,8.4548]
[1741631401971,66.28042772,118.44,118.34,76.511]
[1741631402375,8.4483,118.43,118.35,4.2103]
[1741631402580,66.28042772,118.44,118.36,73.1]
[1741631402882,8.4482,118.43,118.39,0.06093726]
[1741631403074,66.28042772,118.4,118.33,73.12]
[1741631403280,66.34407052,118.42,118.33,73.12]
[1741631403478,66.28042772,118.5,118.34,66.28042772]
[1741631403479,66.28042772,118.46,118.34,66.28042772]
[1741631403685,345.12042772,118.48,118.36,66.28042772]
[1741631403884,66.28042772,118.5,118.38,66.28042772]
[1741631404086,66.28042772,118.5,118.39,83.33763186]
[1741631404388,0.05800148,118.45,118.43,0.05888929]
[1741631404577,66.28042772,118.44,118.39,5.89963186]
[1741631404885,66.28042772,118.41,118.39,1.64573186]
[1741631405185,66.28042772,118.43,118.39,1.64573186]
[1741631405584,345.12042772,118.45,118.39,1.64573186]
[1741631405791,0.06270544,118.42,118.4,0.05857552]
[1741631406186,66.28042772,118.49,118.39,1.64573186]
[1741631406385,278.84,118.5,118.4,70.40320534]
[1741631406585,74.72132772,118.53,118.44,8.4471]
[1741631406780,66.28042772,118.53,118.41,72.98]
[1741631406991,66.28042772,118.51,118.42,1.6889039]
[1741631407187,66.28042772,118.53,118.42,67.96933162]
[1741631407384,66.28042772,118.49,118.42,1.6889039]
[1741631407586,66.33999593,118.49,118.46,0.05889004]
[1741631407782,0.05956821,118.49,118.46,0.05889004]
[1741631408189,74.72542772,118.47,118.46,0.05889004]
[1741631408388,66.28042772,118.47,118.42,1.6889039]
[1741631408696,66.28042772,118.49,118.42,1.6889039]
[1741631408886,66.28042772,118.47,118.42,1.6889039]
[1741631409594,0.05358971,118.46,118.43,0.05839541]
[1741631410790,66.28042772,118.53,118.43,0.05839541]
[1741631410988,66.28042772,118.51,118.42,74.2089039]
[1741631411192,66.28042772,118.49,118.42,1.6889039]
[1741631411396,66.28042772,118.47,118.42,1.6889039]
[1741631411701,8.4463,118.46,118.42,1.6889039]
[1741631411903,0.06270981,118.46,118.43,0.06323236]
[1741631412103,8.50880981,118.46,118.43,0.06323236]
[1741631412805,0.06270981,118.46,118.43,0.06323236]
[1741631413397,278.74,118.53,118.43,71.94323236]
[1741631413601,278.74,118.53,118.44,4.3766]
[1741631413999,8.4419,118.52,118.44,4.3766]
[1741631414400,278.74,118.53,118.44,4.3766]
[1741631414603,0.02444421,118.49,118.47,0.06345125]
[1741631414800,278.74,118.53,118.47,0.06345125]
[1741631415009,66.28042772,118.58,118.48,71.58]
[1741631415306,66.28042772,118.58,118.48,75.9929]
[1741631415694,66.28042772,118.56,118.38,191.0]
[1741631415898,66.28042772,118.5,118.4,12.8121]
[1741631416106,66.28042772,118.5,118.48,0.05729841]
[1741631416309,66.28042772,118.5,118.4,12.8121]
[1741631416500,344.96042772,118.52,118.48,0.05440128]
[1741631416697,66.28042772,118.54,118.42,67.96933162]
[1741631416997,66.28042772,118.52,118.49,0.05644486]
[1741631417301,66.28042772,118.5,118.42,1.6889039]
[1741631417503,66.33687258,118.52,118.42,67.96933162]
[1741631417700,66.28042772,118.52,118.42,1.6889039]
[1741631418100,66.28042772,118.52,118.44,8.4469]
[1741631418301,8.4425,118.51,118.44,8.4469]
[1741631418500,0.05644486,118.49,118.47,0.05980154]
[1741631418898,8.50054486,118.49,118.47,0.06036027]
[1741631419099,0.05644486,118.49,118.47,0.06036027]
[1741631420304,66.28042772,118.54,118.48,8.4442]
[1741631420508,74.71942772,118.56,118.46,66.28042772]
[1741631420709,278.68,118.57,118.47,12.5399]
[1741631421309,278.68,118.57,118.52,8.4409]
[1741631421511,278.68,118.57,118.51,0.0547663]
[1741631422108,66.28042772,118.58,118.51,0.0547663]
[1741631422710,66.28042772,118.6,118.51,0.0547663]
[1741631423011,344.92042772,118.68,118.52,66.28042772]
[1741631423311,8.4364,118.59,118.54,0.06037632]
[1741631423608,66.28042772,118.61,118.53,4.3667]
[1741631423814,66.28042772,118.59,118.55,0.06060233]
[1741631424012,66.28042772,118.57,118.55,0.06060233]
[1741631424405,74.71742772,118.59,118.55,0.06060233]
[1741631424609,66.28042772,118.59,118.55,0.06060233]
[1741631424816,344.92042772,118.61,118.55,0.06060233]
[1741631425012,278.64,118.61,118.55,0.06060233]
[1741631425316,66.28042772,118.65,118.55,0.06060233]
[1741631425519,74.71302772,118.65,118.55,12.5058]
[1741631426015,286.9717,118.66,118.61,8.4346]
[1741631426220,278.54,118.66,118.56,66.28042772]
[1741631426410,8.4305,118.68,118.62,0.05655261]
[1741631426609,66.28042772,118.69,118.62,0.05655261]
[1741631426809,66.28042772,118.67,118.62,0.05655261]
[1741631427215,66.28042772,118.69,118.58,66.28042772]
[1741631427412,66.28042772,118.69,118.63,0.05590376]
[1741631427618,66.28042772,118.73,118.62,66.28042772]
[1741631427809,66.28042772,118.73,118.65,0.05924292]
[1741631428112,8.4278,118.72,118.63,12.6428]
[1741631428311,66.28042772,118.73,118.68,0.05581857]
[1741631429111,8.4277,118.72,118.68,0.05581857]
[1741631429614,8.4286,118.7,118.68,0.05581857]
[1741631429819,66.28042772,118.71,118.68,0.05581857]
[1741631430019,66.28042772,118.73,118.68,0.05581857]
[1741631430518,75.4,118.74,118.68,0.05581857]
[1741631430716,344.72042772,118.77,118.68,0.05581857]
[1741631430914,344.72042772,118.77,118.66,92.519748]
[1741631431117,344.72042772,118.77,118.71,0.06180295]
[1741631431717,353.14462772,118.77,118.71,8.48940295]
[1741631432021,66.28042772,118.75,118.71,0.06180295]
[1741631433419,74.70572772,118.75,118.71,0.06180295]
[1741631433818,8.4272,118.72,118.71,0.06180295]
[1741631434022,66.28042772,118.73,118.71,0.06180295]
[1741631434920,8.4272,118.72,118.71,0.06180295]
[1741631435119,66.28042772,118.73,118.64,92.519748]
[1741631435318,8.429,118.7,118.64,100.952048]
[1741631435519,66.28042772,118.73,118.64,100.952048]
[1741631435723,66.28042772,118.73,118.64,92.519748]
[1741631435923,8.4292,118.7,118.64,100.952148]
[1741631436222,0.05998331,118.68,118.66,0.05762013]
[1741631436418,0.05998331,118.68,118.66,8.48872013]
[1741631436617,0.05998331,118.68,118.66,0.05762013]
[1741631437018,0.05998331,118.68,118.66,8.48852013]
[1741631437219,0.05998331,118.68,118.66,0.05762013]
[1741631437523,66.28042772,118.75,118.66,0.05762013]
[1741631437827,66.28042772,118.75,118.63,82.6344]
[1741631438026,8.4279,118.71,118.66,8.4311]
[1741631438324,66.28042772,118.75,118.64,66.28042772]
[1741631438620,66.28042772,118.75,118.68,0.06207759]
[1741631439024,8.4263,118.74,118.69,8.4291]
[1741631439326,344.72042772,118.77,118.66,66.28042772]
[1741631439524,8.4269,118.73,118.7,0.06282015]
[1741631439917,278.44,118.77,118.7,0.06282015]
[1741631440129,8.4279,118.71,118.7,0.06282015]
[1741631440623,8.4279,118.71,118.7,2.015e-05]
[1741631441025,2.52,118.71,118.61,92.519748]
[1741631441223,66.28042772,118.66,118.61,92.519748]
[1741631441425,66.28042772,118.66,118.61,231.29937]
[1741631441626,66.28042772,118.66,118.62,92.519748]
[1741631441927,66.28042772,118.68,118.62,92.519748]
[1741631442123,0.0544685,118.65,118.63,0.05324334]
[1741631443222,8.4870685,118.65,118.63,0.05324334]
[1741631443423,0.0544685,118.65,118.63,0.05324334]
[1741631443827,8.4329,118.64,118.63,0.05324334]
[1741631444025,74.71332772,118.64,118.63,4.334e-05]
[1741631444329,68.80042772,118.64,118.59,91.69319804]
[1741631444524,66.28042772,118.61,118.59,91.69319804]
[1741631445127,416.46042772,118.63,118.59,91.69319804]
[1741631445422,0.05885741,118.61,118.59,91.74832872]
[1741631445828,138.06042772,118.67,118.59,91.74832872]
[1741631446019,138.06042772,118.67,118.59,0.05513068]
[1741631446226,71.78,118.67,118.58,70.51962772]
[1741631446422,71.78,118.67,118.59,3.9858]
[1741631446627,278.24,118.68,118.64,8.4328]
[1741631446932,278.24,118.73,118.62,66.28042772]
[1741631447235,278.24,118.73,118.65,0.06389931]
[1741631447442,71.46,118.76,118.66,66.28042772]
[1741631447745,8.4255,118.75,118.69,8.4289]
[1741631447928,71.46,118.76,118.66,70.27312772]
[1741631448228,278.24,118.78,118.68,66.28042772]
[1741631448432,66.28042772,118.81,118.7,66.33576134]
[1741631448620,66.28042772,118.81,118.71,71.18]
[1741631448827,66.28042772,118.81,118.75,8.425]
[1741631449032,66.28042772,118.81,118.75,8.48790838]
[1741631449230,278.2,118.83,118.75,0.06290838]
[1741631449626,278.2,118.83,118.72,66.28042772]
[1741631449827,278.2,118.83,118.78,0.05909018]
[1741631450634,66.28042772,118.8,118.66,74.6127]
[1741631450831,70.58,118.8,118.7,1.68491996]
[1741631451029,145.38072772,118.82,118.74,8.4252]
[1741631451230,66.28042772,118.8,118.7,1.68491996]
[1741631451734,8.4223,118.79,118.71,8.4277]
[1741631451935,0.05749843,118.76,118.74,0.06442783]
[1741631452627,344.45792615,118.76,118.74,0.06442783]
[1741631452833,344.45792615,118.76,118.74,0.00745451]
[1741631453035,278.17749843,118.76,118.74,0.00745451]
[1741631453531,0.05749843,118.76,118.74,0.00745451]
[1741631453729,66.33792615,118.76,118.74,0.00745451]
[1741631453926,8.425,118.75,118.74,0.00745451]
[1741631455238,66.33792615,118.76,118.74,0.00745451]
[1741631455439,0.05749843,118.76,118.74,0.00745451]
[1741631456342,66.33792615,118.76,118.74,0.00745451]
[1741631456538,8.425,118.75,118.74,0.00745451]
[1741631457142,10.945,118.75,118.74,0.00745451]
[1741631458039,68.80042772,118.75,118.61,66.28042772]
[1741631458245,66.28042772,118.71,118.61,70.44032772]
[1741631458445,135.02042772,118.71,118.61,70.44032772]
[1741631458944,8.429,118.7,118.64,8.4323]
[1741631459142,0.05877168,118.67,118.65,0.05776908]
[1741631459348,278.06,118.74,118.65,0.05776908]
[1741631459643,8.4268,118.73,118.65,66.28042772]
[1741631459845,278.06,118.74,118.64,68.7]
[1741631460447,344.34042772,118.74,118.64,68.7]
[1741631460747,66.28042772,118.78,118.68,0.05542896]
[1741631460949,66.28042772,118.78,118.67,4.2201]
[1741631461155,66.28042772,118.78,118.68,66.28042772]
[1741631461553,8.4248,118.76,118.67,4.2201]
[1741631461852,66.28042772,118.78,118.67,4.2201]
[1741631462148,346.44,118.79,118.7,0.05342887]
[1741631462350,278.08,118.79,118.7,0.05342887]
[1741631462553,278.08,118.79,118.73,0.05620671]
[1741631462750,66.28042772,118.76,118.73,0.05620671]
[1741631463051,67.88,118.75,118.73,0.05620671]
[1741631463252,66.28042772,118.76,118.73,0.05620671]
[1741631463552,74.70532772,118.76,118.73,0.05620671]
[1741631463843,67.86,118.77,118.73,0.05620671]
[1741631464050,278.08,118.79,118.73,0.05620671]
[1741631464550,66.28042772,118.78,118.73,0.05620671]
[1741631465753,278.08,118.79,118.73,0.05620671]
[1741631466349,344.34042772,118.84,118.73,0.05620671]
[1741631466549,411.56042772,118.84,118.73,4.3403]
[1741631466747,8.4204,118.82,118.77,8.47938184]
[1741631466947,278.06,118.84,118.77,0.05618184]
[1741631467351,278.06,118.84,118.82,8.4197]
[1741631467550,133.22042772,118.88,118.77,66.28042772]
[1741631467780,66.94,118.88,118.82,0.05917047]
[1741631468254,278.04,118.89,118.82,0.05917047]
[1741631469452,34.4833432,118.93,118.83,132.70042772]
[1741631469654,34.4833432,118.93,118.87,66.28042772]
[1741631469850,34.4833432,118.93,118.87,0.06063404]
[1741631470058,42.8961432,118.93,118.87,0.06063404]
[1741631470259,34.4833432,118.93,118.87,0.06063404]
[1741631470655,34.4833432,118.93,118.89,66.28042772]
[1741631470856,38.10544417,118.94,118.9,4.3235]
[1741631471153,38.10544417,118.94,118.9,4.38695763]
[1741631471358,66.28042772,119.0,118.9,4.38695763]
[1741631471557,66.28042772,118.98,118.9,0.06345763]
[1741631471759,66.28042772,118.96,118.86,4.1584]
[1741631471963,66.28042772,118.94,118.87,1.6825103]
[1741631472156,0.05888867,118.92,118.87,1.6825103]
[1741631472355,66.33931639,118.92,118.87,1.6825103]
[1741631472550,66.28042772,118.9,118.87,1.6825103]
[1741631472950,68.80042772,118.9,118.79,66.28042772]
[1741631473257,66.28042772,118.84,118.77,195.114]
[1741631473556,66.28042772,118.84,118.74,368.35407211]
[1741631473557,66.28042772,118.84,118.75,4.3543]
[1741631473755,66.28042772,118.82,118.75,4.3543]
[1741631473957,66.28042772,118.78,118.74,92.89965294]
[1741631474153,344.10042772,118.78,118.74,92.89965294]
[1741631474363,0.0581762,118.77,118.75,0.05430656]
[1741631476069,277.82,118.83,118.75,66.33473428]
[1741631476359,66.28042772,118.82,118.74,4.3543]
[1741631476758,277.82,118.83,118.74,4.3543]
[1741631476962,277.82,118.83,118.75,66.28042772]
[1741631477160,277.82,118.83,118.74,4.3543]
[1741631477364,277.82,118.83,118.78,0.0620544]
[1741631477365,0.05444629,118.8,118.78,0.0620544]
[1741631477566,344.14042772,118.88,118.78,0.0620544]
[1741631477763,344.14042772,118.88,118.77,66.28042772]
[1741631478059,410.52042772,118.88,118.77,66.28042772]
[1741631478266,66.28042772,118.84,118.74,4.3543]
[1741631478562,66.34,118.83,118.74,4.3543]
[1741631478965,66.34,118.83,118.77,0.06088998]
[1741631479269,66.28042772,118.86,118.77,0.06088998]
[1741631479466,66.28042772,118.84,118.77,0.06088998]
[1741631479667,66.28042772,118.84,118.74,4.3543]
[1741631479867,66.28042772,118.84,118.79,0.06188539]
[1741631481565,66.1,118.85,118.79,0.06188539]
[1741631482061,277.86,118.88,118.83,8.4192]
[1741631482259,277.86,118.88,118.8,13.0108]
[1741631482465,344.14042772,118.88,118.84,0.05655859]
[1741631483666,8.4174,118.86,118.84,0.05655859]
[1741631483862,344.14042772,118.88,118.84,0.05655859]
[1741631484066,66.28042772,118.86,118.76,4.399]
[1741631484260,8.4506,118.91,118.79,66.28042772]
[1741631484261,66.28042772,118.9,118.79,66.28042772]
[1741631484467,277.84,118.93,118.83,66.28042772]
[1741631484659,286.2526,118.93,118.87,8.4165]
[1741631484859,66.28042772,118.92,118.84,4.399]
[1741631485369,0.05617551,118.89,118.87,0.05586906]
[1741631487469,344.04042772,118.98,118.87,68.85629678]
[1741631487766,202.482,119.06,118.89,66.28042772]
[1741631487767,344.04042772,119.0,118.89,66.28042772]
[1741631487973,277.76,119.0,118.9,65.1]
[1741631488264,277.76,119.0,118.91,70.35992772]
[1741631488468,286.1679,119.0,118.94,8.4111]
[1741631488672,277.76,119.0,118.94,8.46940986]
[1741631488968,277.76,119.0,118.94,0.05830986]
[1741631489369,66.28042772,118.98,118.94,0.05830986]
[1741631489760,8.4126,118.93,118.88,4.1273]
[1741631489959,66.28042772,118.96,118.88,4.1273]
[1741631490165,66.28042772,118.89,118.87,1.6825103]
[1741631490369,66.28042772,118.89,118.78,191.0]
[1741631490370,66.28042772,118.89,118.79,4.3555]
[1741631490566,344.12,118.9,118.79,4.3555]
[1741631490567,66.28042772,118.88,118.79,4.3555]
[1741631490762,410.40042772,118.9,118.79,71.4555]
[1741631490971,0.05717515,118.85,118.82,0.06465756]
[1741631491176,66.28042772,118.92,118.82,0.06465756]
[1741631491465,66.28042772,118.92,118.8,257.28042772]
[1741631491670,66.28042772,118.92,118.85,92.02666485]
[1741631492266,66.28042772,118.94,118.87,0.06337044]
[1741631492466,66.28042772,118.92,118.85,92.02666485]
[1741631492770,66.28042772,118.9,118.89,0.05543411]
[1741631492972,66.28042772,118.92,118.89,0.05543411]
[1741631493870,344.86,118.95,118.89,0.05543411]
[1741631493871,66.28042772,118.9,118.89,0.05543411]
[1741631494176,133.34042772,118.9,118.8,8.4212]
[1741631494375,66.28042772,118.86,118.79,4.3555]
[1741631494673,66.28042772,118.88,118.79,4.3555]
[1741631494869,75.4747,118.9,118.79,4.3555]
[1741631494870,133.34042772,118.9,118.79,70.63592772]
[1741631495064,66.28042772,118.88,118.79,4.3555]
[1741631495273,74.69912772,118.84,118.83,0.06279912]
[1741631495474,66.3356737,118.86,118.83,0.06279912]
[1741631495973,8.418,118.85,118.83,0.06279912]
[1741631496174,0.05524598,118.86,118.83,0.06279912]
[1741631496374,66.3356737,118.86,118.83,0.06279912]
[1741631497573,8.4184,118.85,118.83,0.06279912]
[1741631497776,66.3356737,118.86,118.83,0.06279912]
[1741631498375,66.28042772,118.84,118.77,92.02666485]
[1741631498673,8.4227,118.79,118.74,92.02666485]
[1741631498972,277.68,118.88,118.74,92.02666485]
[1741631499173,66.28042772,118.85,118.77,8.4232]
[1741631499372,66.28042772,118.83,118.74,158.36666485]
[1741631499570,66.28042772,118.81,118.8,0.06253445]
[1741631499774,0.05579512,118.82,118.74,158.36666485]
[1741631499966,66.37762772,118.87,118.79,0.0627953]
[1741631500169,277.68,118.88,118.79,66.26]
[1741631500372,0.0535895,118.84,118.82,0.05311287]
[1741631501494,0.0535895,118.84,118.82,8.47261287]
[1741631501699,0.0535895,118.84,118.82,0.05311287]
[1741631503088,66.28042772,118.83,118.77,8.4233]
[1741631503291,66.28042772,118.83,118.76,116.04937601]
[1741631503491,8.4199,118.83,118.78,8.4222]
[1741631503689,66.28042772,118.85,118.76,116.04937601]
[1741631503898,66.28042772,118.82,118.75,93.71087537]
[1741631504204,8.4243,118.76,118.75,93.71087537]
[1741631504406,140.06472772,118.76,118.75,6.348e-05]
[1741631504601,8.425,118.75,118.74,138.10227327]
[1741631504900,131.64042772,118.76,118.74,138.10227327]
[1741631505902,8.425,118.75,118.74,138.10227327]
[1741631506301,0.06315384,118.77,118.74,138.10227327]
[1741631506707,0.06315384,118.77,118.74,0.062276]
[1741631507333,66.28042772,118.75,118.74,0.062276]
[1741631507516,74.70542772,118.75,118.74,0.062276]
[1741631509402,66.34358156,118.77,118.74,0.062276]
[1741631510213,0.06315384,118.77,118.74,0.062276]
[1741631511320,8.4245,118.76,118.74,0.062276]
[1741631511914,0.06315384,118.77,118.74,0.062276]
[1741631512719,0.06315384,118.77,118.75,8.4245]
[1741631512918,277.76,118.81,118.75,8.4245]
[1741631513219,63.66,118.84,118.75,8.0185]
[1741631513416,8.4205,118.82,118.75,8.0185]
[1741631513609,66.28042772,118.85,118.75,8.0185]
[1741631513810,66.28042772,118.83,118.76,8.424]
[1741631514003,66.28042772,118.83,118.75,71.3585]
[1741631514218,0.05664084,118.81,118.78,0.06387062]
[1741631515324,66.33706856,118.81,118.78,0.06387062]
[1741631516099,0.05664084,118.81,118.78,0.06387062]
[1741631517611,0.05664084,118.81,118.78,8.48657062]
[1741631517926,0.05664084,118.81,118.78,0.06387062]
[1741631519700,8.422,118.8,118.78,0.06387062]
[1741631519900,0.05664084,118.81,118.78,0.06387062]
[1741631520291,8.4222,118.79,118.78,0.06387062]
[1741631520492,0.05664084,118.81,118.78,0.06387062]
[1741631522992,0.05664084,118.81,118.79,8.4221]
[1741631523189,0.05664084,118.81,118.78,0.06387062]
[1741631523395,66.28042772,118.8,118.78,0.06387062]
[1741631523796,0.05664084,118.81,118.78,0.06387062]
[1741631524293,66.33706856,118.81,118.78,0.06387062]
[1741631524488,8.4222,118.79,118.78,0.06387062]
[1741631524885,74.70262772,118.79,118.78,0.00217062]
[1741631525088,8.4251,118.75,118.71,4.4032]
[1741631525290,66.28042772,118.78,118.71,4.4032]
[1741631525590,347.1826,118.79,118.74,8.4254]
[1741631525793,338.76,118.79,118.71,4.4032]
[1741631526089,66.28042772,118.78,118.71,4.4032]
[1741631526297,66.34452769,118.76,118.74,0.05799071]
[1741631526693,8.4257,118.75,118.74,0.05799071]
[1741631526994,66.34452769,118.76,118.74,0.05799071]
[1741631527192,0.06409997,118.76,118.74,0.05799071]
[1741631527784,8.425,118.75,118.74,0.05799071]
[1741631527992,66.34452769,118.76,118.74,0.05799071]
[1741631528194,8.425,118.75,118.74,0.05799071]
[1741631528393,66.34452769,118.76,118.74,0.05799071]
[1741631528892,74.76882769,118.76,118.74,0.05799071]
[1741631529101,66.34452769,118.76,118.74,0.05799071]
[1741631529492,8.425,118.75,118.74,0.05799071]
[1741631530587,8.425,118.75,118.74,9.071e-05]
[1741631530791,8.428,118.71,118.68,4.0364]
[1741631530989,66.28042772,118.72,118.65,96.90392937]
[1741631531189,66.28042772,118.72,118.65,105.33552937]
[1741631531394,66.28042772,118.72,118.65,96.90392937]
[1741631531597,66.28042772,118.7,118.64,4.328]
[1741631531795,66.28042772,118.66,118.62,96.88742937]
[1741631531997,66.28042772,118.66,118.62,92.86142937]
[1741631532298,66.28042772,118.66,118.63,0.06177172]
[1741631532499,0.06336981,118.65,118.63,0.06177172]
[1741631532701,0.06336981,118.65,118.64,8.4327]
[1741631533093,412.26822772,118.72,118.63,0.06177172]
[1741631533404,66.28042772,118.68,118.63,8.4333]
[1741631533606,66.28042772,118.68,118.62,92.86142937]
[1741631533805,66.28042772,118.68,118.65,8.4317]
[1741631534002,66.28042772,118.68,118.62,92.86142937]
[1741631534203,66.34347576,118.68,118.65,0.06002775]
[1741631535399,66.28042772,118.66,118.65,0.06002775]
[1741631535594,66.28042772,118.66,118.59,4.328]
[1741631535794,66.28042772,118.63,118.57,4.026]
[1741631535995,344.30042772,118.65,118.57,4.026]
[1741631536406,66.28042772,118.63,118.57,4.026]
[1741631536808,278.02,118.65,118.55,4.279]
[1741631536809,74.7792978,118.61,118.59,0.06014378]
[1741631537204,66.3439978,118.61,118.59,0.06014378]
[1741631537905,0.06357008,118.61,118.59,0.06014378]
[1741631538299,66.3439978,118.61,118.59,0.06014378]
[1741631538498,8.4376,118.58,118.54,3.9927]
[1741631538802,66.28042772,118.6,118.54,3.9927]
[1741631538998,74.71512772,118.62,118.56,8.4384]
[1741631539201,66.28042772,118.62,118.54,3.9927]
[1741631539401,66.28042772,118.56,118.53,92.86142937]
[1741631539601,8.4397,118.55,118.53,92.86142937]
[1741631539800,66.34220999,118.56,118.53,0.059155]
[1741631540006,66.28042772,118.54,118.53,0.059155]
[1741631542003,66.28042772,118.52,118.5,0.05997062]
[1741631543215,74.72232772,118.52,118.5,0.05997062]
[1741631543610,66.28042772,118.52,118.5,0.05997062]
[1741631544309,74.72222772,118.52,118.5,0.05997062]
[1741631544706,66.28042772,118.52,118.5,0.05997062]
[1741631545721,74.72192772,118.52,118.5,0.05997062]
[1741631545913,66.28042772,118.52,118.5,0.05997062]
[1741631546222,8.4435,118.5,118.46,4.1839]
[1741631546514,66.28042772,118.47,118.4,8.0079]
[1741631546712,66.28042772,118.45,118.4,12.2057]
[1741631547412,0.05889942,118.44,118.41,0.06083232]
[1741631547920,0.05889942,118.44,118.42,8.4485]
[1741631548220,0.05889942,118.44,118.41,0.06083232]
[1741631548414,8.50629942,118.44,118.41,0.06083232]